Workbook

Sheet Cover Sheet (hidden)
B2: File Name | G2: =IFERROR(MID(CELL("filename",G2),FIND("[",CELL("filename",G2))+1,FIND("]",CELL("filename",G2))-FIND("[",CELL("filename",G2))-1),"Please save the file to show here") -> Herefordshire CBA.xlsm
B3: Sheet Name | G3: =IFERROR(MID(CELL("filename",G2),FIND("]",CELL("filename",G2))+1,255),"Please save the file to show here") -> Cover Sheet
B4: Description and Purpose of Model: | G4: =H11 -> Example Mode
B5: Version number | G5: =Version_number -> 0.03
B8: Workbook Properties
G10: File Name | H10: =IFERROR(MID(CELL("filename",G2),FIND("[",CELL("filename",G2))+1,FIND("]",CELL("filename",G2))-FIND("[",CELL("filename",G2))-1),"Please save the file to show here") -> Herefordshire CBA.xlsm
G11: Description and Purpose of Model: | H11: Example Mode
G12: Version number | H12: =MAX(G19:G29) -> 0.03
B15: Version Control
G18: Version | H18: Filename | I18: Description | J18: Changes since last version | K18: Date Created | L18: Analyst | M18: QA status
G19: 0.01 | H19: =IF(G19="","",IFERROR(MID(CELL("filename",G2),FIND("[",CELL("filename",G2))+1,FIND("]",CELL("filename",G2))-FIND("[",CELL("filename",G2))-1),"Please save the file to show here")) -> Herefordshire CBA.xlsm | I19: Initial Development Version | J19: N/A | K19: 2017-10-27 | L19: XXX | M19: Not yet reviewed
G20: 0.02 | H20: =IF(G20="","",IFERROR(MID(CELL("filename",G3),FIND("[",CELL("filename",G3))+1,FIND("]",CELL("filename",G3))-FIND("[",CELL("filename",G3))-1),"Please save the file to show here")) -> Herefordshire CBA.xlsm | I20: Final Stage Prep | J20: More user friendly Adapting for LA use Changing title page, about page, inputs and outputs | K20: 2017-10-24 | L20: Louise Baker | M20: Not yet reviewed
G21: 0.03 | H21: =IF(G21="","",IFERROR(MID(CELL("filename",G4),FIND("[",CELL("filename",G4))+1,FIND("]",CELL("filename",G4))-FIND("[",CELL("filename",G4))-1),"Please save the file to show here")) -> Herefordshire CBA.xlsm | I21: Final Stage Calc for Review | J21: Updates from LS QA | K21: 2018-11-08 | L21: Louise Baker | M21: Reviewed by LS
H22: =IF(G22="","",IFERROR(MID(CELL("filename",G5),FIND("[",CELL("filename",G5))+1,FIND("]",CELL("filename",G5))-FIND("[",CELL("filename",G5))-1),"Please save the file to show here")) -> 
H23: =IF(G23="","",IFERROR(MID(CELL("filename",#REF!),FIND("[",CELL("filename",#REF!))+1,FIND("]",CELL("filename",#REF!))-FIND("[",CELL("filename",#REF!))-1),"Please save the file to show here")) -> 
H24: =IF(G24="","",IFERROR(MID(CELL("filename",G6),FIND("[",CELL("filename",G6))+1,FIND("]",CELL("filename",G6))-FIND("[",CELL("filename",G6))-1),"Please save the file to show here")) -> 
B31: Legend
G34: Banner 1: Properties and Section Breaks
G35: Banner 2: Headers, Timeline and Key Labels
G36: Input (Raw Data)
G37: Input (Assumption)
G38: Calculation
G39: Carried through data
G40: Output
G41: ERROR/OK, FALSE/TRUE (manual or with Conditional Formatting)
G42: Table heading
B45: Table of Contents
B48: Table of Contents
B50: I- XXX | G50: user input
B51: C- XXX | G51: user input
B52: O- XXX | G52: user input

Sheet Title page
B2: Local Authority Permit Calculator
D19: Contents
D24: About
G25: How to use the calculator
G26: Assumptions
G27: Costs and benefits
G28: Net Present Value
D30: Input sheet
G31: Inputs required
D33: Output sheet
G34: Key inputs and assumptions
G35: Key outputs
G36: Appraisal outputs

Sheet About
D2: Using the Permit Scheme Calculator
D4: This calculator is for local authorities to assess the costs and benefits of using a permit fee scheme. Outputs from the calculator should be used as a guide for local authorities to assess the feasibility of a permit scheme. Outputs may also be used in a business case to support the local authority bid for a permit scheme.
D8: Please read the guidance note and instructions below before using the calculator.
D11: How to use the calculator
D12: On the 'Inputs' sheet, please input the requested data. This will be used to calculate a range of benefits and costs affiliated with the permit scheme. These are then displayed on the 'Key outputs' sheet.
D15: Inputs
D16: Input the requested data into the blue highlighted cells | F16: Inputs
D19: Calculations
D20: Using the inputs provided, the model will calculate how the permit scheme will impact the local authority. | F20: Calculations
D23: Outputs
D24: Key outputs are displayed on this sheet. | F24: Outputs
D25: Please use this sheet to assess the costs and benefits of the permit fee scheme in the local authority
D29: Assumptions
D30: The outputs of the calculator are subject to a number of assumptions. The assumptions are made to enable analysis in the abscence of data and in interests of proportionality. This means that the outputs of the calculator should be treated as suggestive estimates, and should not be construed decisive statements about the performance of the scheme in your local authority.
D32: Behavioural assumptions - reduction in the duration of works (measured in work days)
D33: The default behavioural assumptions are sourced from the Evaluation of Street Works Permit Schemes Report 2018.
D35: Cost assumptions - additional costs for works promoters
D36: The cost assumptions are sourced from the Evaluation of Street Works Permit Schemes Report 2018. The calculator assumes that works promoters will face additional administration costs from using the permit scheme that are equal to 20% of local highway authority costs.
D39: Costs
D41: Set-up costs for local authorities
D42: Local authorities will incur a one time set-up cost in the first year of the scheme.
D44: Running costs for local authorities
D45: Local authorities will incur annual running costs. These costs occur as local authorities provide permits for works undertaken by both statutory undertakers and local authority works promoters. Annual running costs in relation to statutory undertaker's works are recovered through the permit fee revenue.
D46: Permit fees
D47: Statutory undertakers will pay a fee to apply for a works permit. Local authority works promoters will apply for a permit but do not pay a permit fee.
D49: Benefits
D50: Permit fees
D51: Local authorities receive their income through permit fees from statutory undertakers. The fees received will cover the annual running costs of the permit scheme in relation to statutory undertaker's works.
D53: A reduction in the duration of works leads to lower congestion costs to road users
D54: The calculator will estimate the reduction in the duration of works per year for the local authority. The calculator then monetises the effects in terms of:
D55: - Reduced journey times
D56: - More reliable journeys
D57: - Reduction in accidents
D58: - Reduction in carbon emissions and fuel consumption
D61: Net Present Value
D62: The calculator will then calculate the total costs and benefits over the full appraisal period.
D63: =Calculations!$C$205 -> The appraisal covers the period of 10 years from 2019 to 2028, with a 2019 discount base. Please refer to the guidance note for more information on appraisal.
D64: The Net Present Value (NPV) shows the difference between the value of the Net Present Benefits and the Net Present Costs. This indicates the value for money that a permit fee scheme provides.
D75: End of instructions

Sheet Inputs>> (hidden)
C11: Inputs

Sheet Inputs >>>
B10: Inputs

Sheet Inputs
D2: File Name | M2: =IFERROR(MID(CELL("filename",M2),FIND("[",CELL("filename",M2))+1,FIND("]",CELL("filename",M2))-FIND("[",CELL("filename",M2))-1),"Please save the file to show here") -> Herefordshire CBA.xlsm
D3: Sheet Name | M3: =IFERROR(MID(CELL("filename",M2),FIND("]",CELL("filename",M2))+1,255),"Please save the file to show here") -> Inputs
D4: Description and Purpose of Sheet | M4: user input
D5: Version number | M5: =Version_number -> 0.03
E8: Inputs
D13: Please follow the instructions below and enter the inputs into the blue highlighted cells. When complete, click the 'Go to outputs' button at the bottom of the sheet.
D15: Instructions | L15: Inputs
D17: Enter the name of the local authority | L17: Name of the local authority: | M17: Herefordshire Council
L19: Total number of street works
L20: Current number of street works per year
D21: Enter the current number of street works that take place, per year, in the local authority. Works should be broken down by works type - major, standard, minor, immediate Works should be broken down by works promoter - works undertaken by Statutory Undertakers (Utility Companies) or by local authorities | M21: Statutory Undertaker | N21: Local Authority
L22: Major | M22: 370 | N22: 304
L23: Standard | M23: 684 | N23: 113
L24: Minor | M24: 2263 | N24: 430
L25: Immediate | M25: 1432 | N25: 1047
L27: Current number of work days per year
D28: Enter the total number of days taken to complete works This should be broken down by works type and works promoter | M28: Statutory Undertaker | N28: Local Authority
L29: Major | M29: 11470 | N29: 8512
L30: Standard | M30: 6430 | N30: 1186
L31: Minor | M31: 4073 | N31: 857
L32: Immediate | M32: 2724 | N32: 2228
L34: 0-2 category roads
L36: Percentage of works completed on 0-2 category roads
D37: Enter the percentage of all works that are completed on 0-2 category roads This should be broken down by works type and works promoter | M37: Statutory Undertaker | N37: Local Authority
L38: Major | M38: 0.25 | N38: 0.28
L39: Standard | M39: 0.22 | N39: 0.25
L40: Minor | M40: 0.2 | N40: 0.24
L41: Immediate | M41: 0.24 | N41: 0.2
L43: Major Works
L45: Proportion of major works completed by the number of days:
N46: Number of works:
L47: Major works - over 10 days or traffic regulation order required | M47: 0.92 | N47: =IF(OR($M$47="", SUM($M$22:$N$22)=0), "", $M$47*$N$50) -> 620.08
D48: Enter the proportion of major works completed by each time period. Use the number of works column to check the proportions are consistent with the breakdown of major works. | L48: Major works - 4 to 10 days and no traffic regulation order required | M48: 0.03 | N48: =IF(OR($M$48="", SUM($M$22:$N$22)=0), "", $M$48*$N$50) -> 20.22
L49: Major works - up to 3 days and no traffic regulation order required | M49: 0.05 | N49: =IF(OR($M$49="", SUM($M$22:$N$22=0)), "", $M$49*$N$50) -> 33.7
L50: Total: | M50: =IF(SUM(M47:M49)=0,"",SUM(M47:M49)) -> 1 | N50: =IF($M$22+$N$22=0, "",$M$22+$N$22) -> 674
M51: =IF($M$50<>1,"The proportional split of major works do not sum to 100%, please correct before proceeding.","") -> 
L53: Permit Fee Structure
D55: Select the preferred permit fee structure | L55: Preferred permit fee structure | M55: Maximum
L58: Maximum Permit Fee Structure
M59: Road Category 0-2 or traffic sensitive road | N59: Road Category 3-4 or non traffic sensitive road
L60: =L70 -> Major works - over 10 days or traffic regulation order required | M60: ='Maximum Charges'!D8 -> 240 | N60: ='Maximum Charges'!E8 -> 150
D61: It is recommended to use the maximum permit fee structure, unless there is strong evidence to use the custom permit fee structure. The maximum permit fee structure is sourced from the Statutory Guidance for Highway Authority Permit Schemes 2015. | L61: Major works - 4 to 10 days and no traffic regulation order required | M61: ='Maximum Charges'!D9 -> 130 | N61: ='Maximum Charges'!E9 -> 75
L62: Major works - up to 3 days and no traffic regulation order required | M62: ='Maximum Charges'!D10 -> 65 | N62: ='Maximum Charges'!E10 -> 45
L63: Standard works | M63: ='Maximum Charges'!D11 -> 130 | N63: ='Maximum Charges'!E11 -> 75
L64: Minor works | M64: ='Maximum Charges'!D12 -> 65 | N64: ='Maximum Charges'!E12 -> 45
L65: Immediate works | M65: ='Maximum Charges'!D13 -> 60 | N65: ='Maximum Charges'!E13 -> 40
L68: Custom Permit Fee Structure
M69: Road Category 0-2 or Traffic-sensitive | N69: Road Category 3-4 and non traffic sensitive
L70: Major works - over 10 days or traffic regulation order required
D71: If a custom permit fee structure is preferred, please enter the fee per work split by works type and road type. | L71: Major works - 4 to 10 days and no traffic regulation order required
L72: Major works - up to 3 days and no traffic regulation order required
L73: Standard works
L74: Minor works
L75: Immediate works
D77: Please provide a short statement of supporting evidence for the custom permit fee structure.
L82: Local Authority costs
D84: Enter the expected set-up cost for the scheme. This includes the cost for a consultant if required. The cash (nominal) price base year is 2019. | L84: Set-up costs (first year only): | M84: 30000 | O84: .
L85: Price base year: | M85: 2019
L88: Behavioural change
D90: Select the expected behavioural change in the duration of works due to the permit scheme. | L90: Behavioural change in the duration of works: | M90: Default
L93: Default behavioural change
D94: It is recommended to use the default behavioural change unless there is strong evidence to use the custom behavioural change inputs | M94: Statutory Undertaker | N94: Local Authority
L95: Major | M95: ='Expected Change'!D13 -> -0.139 | N95: ='Expected Change'!D8 -> -0.065
L96: Standard | M96: ='Expected Change'!D14 -> -0.016 | N96: ='Expected Change'!D9 -> -0.077
L97: Minor | M97: ='Expected Change'!D15 -> 0.081 | N97: ='Expected Change'!D10 -> -0.089
L98: Immediate | M98: ='Expected Change'!D16 -> 0.03 | N98: ='Expected Change'!D11 -> 0
L101: Custom behavioural change
D102: If a custom behavioural change is expected, enter the percentage change in the duration of works expected due to the permit scheme. | M102: Statutory Undertaker | N102: Local Authority
L103: Major
L104: Standard
L105: Minor
L106: Immediate
D108: Please provide a short statement of supporting evidence for the custom behavioural change of the duration of works
E115: Go to outputs >>
E122: To hide: | F122: QUADRO outputs | L122: Source:
L123: Kent QUADRO outputs from Lane Rental IA - including reliability uplift of 10%
E124: Consumer | F124: 0.4412665663
E125: Business | F125: 0.5022790193
E126: Fuel carbon emissions | F126: 0.04770150636
E127: Accident | F127: 0.008752907987
D131: END

Sheet I- XXX (2) (hidden)
B2: File Name | G2: =IFERROR(MID(CELL("filename",G2),FIND("[",CELL("filename",G2))+1,FIND("]",CELL("filename",G2))-FIND("[",CELL("filename",G2))-1),"Please save the file to show here") -> Herefordshire CBA.xlsm
B3: Sheet Name | G3: =IFERROR(MID(CELL("filename",G2),FIND("]",CELL("filename",G2))+1,255),"Please save the file to show here") -> I- XXX (2)
B4: Description and Purpose of Sheet | G4: user input
B5: Version number | G5: =Version_number -> 0.03
B8: Header 1
C10: Permit fee structure
D12: Road Category 0-2 or Traffic-sensitive | E12: Road Category 3-4 and non trafficsensitive
C13: Provisional Advance
C14: Major works – over 10 days and/or requiring a traffic regulation order.
C15: Major works – 4 to 10 days and not requiring a traffic regulation order.
C16: Major works – up to 3 days and/or requiring a traffic regulation order.
C17: Activity Standard
C18: Activity Minor
C19: Immediate Activity
C20: Permit Variation
C23: Distribution of major works
D24: Number of Works | E24: Percentage
C25: Over 10 days and/or traffic regulation order: | D25: 10 | E25: =D25/(D$25+D$26+D$27) -> 0.3333333333
C26: 4 to 10 days and no traffic regulation order: | D26: 10 | E26: =D26/(D$25+D$26+D$27) -> 0.3333333333
C27: 1 to 4 days and no traffic regulation order: | D27: 10 | E27: =D27/(D$25+D$26+D$27) -> 0.3333333333
C30: Expected behaviour change
C33: Percentage of works moving to off-peak:
B35: END

Sheet Calcs>> (hidden)
C11: Calculations

Sheet Calculations >>> (hidden)
B10: Calculations

Sheet Calculations (hidden)
B2: File Name | G2: =IFERROR(MID(CELL("filename",G2),FIND("[",CELL("filename",G2))+1,FIND("]",CELL("filename",G2))-FIND("[",CELL("filename",G2))-1),"Please save the file to show here") -> Herefordshire CBA.xlsm
B3: Sheet Name | G3: =IFERROR(MID(CELL("filename",G2),FIND("]",CELL("filename",G2))+1,255),"Please save the file to show here") -> Calculations
B4: Description and Purpose of Sheet | G4: user input
B5: Version number | G5: =Version_number -> 0.03
B8: Scenario
C10: Name of Local Authority | E10: =IF(Inputs!$M$17="","",Inputs!$M$17) -> Herefordshire Council
C12: Preferred Permit Fee Structure | E12: =Inputs!M55 -> Maximum
C14: Behavioural change in the number of workdays | E14: =Inputs!$M$90 -> Default
B16: Reduction in workdays
C18: Total number of works | D18: =SUM(Inputs!$M$22:$N$25) -> 6643 | F18: The number of works that take place in the local authority will not change. The permit fee scheme will only impact the time taken to complete these works. The total duration of all works is measured in work days and is shown below.
C23: Behavioural change in the number of workdays: | E23: =Inputs!$M$90 -> Default
C25: Behavioural change in the reduction of workdays
D27: Statutory undertaker (Utility) | E27: Local Authority | G27: =IF(OR(D28>0, D29>0, D30>0, D31>0,E28>0, E29>0, E30>0, E31>0), "The duration of works will increase for one or more of the categories in this table. Please refer to the guidance note for more information", "") -> The duration of works will increase for one or more of the categories in this table. Please refer to the guidance note for more information
C28: Major | D28: =IF($E$23='Drop downs'!$B$10, Inputs!M95, Inputs!M103) -> -0.139 | E28: =IF($E$23='Drop downs'!$B$10, Inputs!N95, Inputs!N103) -> -0.065
C29: Standard | D29: =IF($E$23='Drop downs'!$B$10, Inputs!M96, Inputs!M104) -> -0.016 | E29: =IF($E$23='Drop downs'!$B$10, Inputs!N96, Inputs!N104) -> -0.077
C30: Minor | D30: =IF($E$23='Drop downs'!$B$10, Inputs!M97, Inputs!M105) -> 0.081 | E30: =IF($E$23='Drop downs'!$B$10, Inputs!N97, Inputs!N105) -> -0.089
C31: Immediate | D31: =IF($E$23='Drop downs'!$B$10, Inputs!M98, Inputs!M106) -> 0.03 | E31: =IF($E$23='Drop downs'!$B$10, Inputs!N98, Inputs!N106) -> 0
C34: Reduction in number of workdays
C36: Current number of workdays
D38: Statutory undertaker (Utility company) | E38: Local Authority | F38: Total
C39: =Inputs!L22 -> Major | D39: =Inputs!M29 -> 11470 | E39: =Inputs!N29 -> 8512 | F39: =SUM(D39:E39) -> 19982
C40: =Inputs!L23 -> Standard | D40: =Inputs!M30 -> 6430 | E40: =Inputs!N30 -> 1186 | F40: =SUM(D40:E40) -> 7616
C41: =Inputs!L24 -> Minor | D41: =Inputs!M31 -> 4073 | E41: =Inputs!N31 -> 857 | F41: 4930
C42: =Inputs!L25 -> Immediate | D42: =Inputs!M32 -> 2724 | E42: =Inputs!N32 -> 2228 | F42: 4952
C44: Total | D44: =SUM(D39:D42) -> 24697 | E44: =SUM(E39:E42) -> 12783 | F44: 37480
C47: Expected change in workdays
D49: Statutory undertaker (Utility company) | E49: Local Authority | F49: Total
C50: Major | D50: =D39*D28 -> -1594.33 | E50: -553.28 | F50: =D50+E50 -> -2147.61 | H50: Total current number of workdays | J50: =$F$44 -> 37480
C51: Standard | D51: -102.88 | E51: -91.322 | F51: =D51+E51 -> -194.202
C52: Minor | D52: 329.913 | E52: -76.273 | F52: 253.64 | H52: Expected change in workdays | J52: =$F$55 -> -2006.452
C53: Immediate | D53: 81.72 | E53: 0 | F53: 81.72
H54: Expected number of workdays due to permit scheme | J54: =$F$65 -> 35473.548
C55: Total | D55: =SUM(D50:D53) -> -1285.577 | E55: =SUM(E50:E53) -> -720.875 | F55: -2006.452
C57: Expected number of workdays
D59: Statutory undertaker (Utility) | E59: Local Authority | F59: Total
C60: Major | D60: =D39+D50 -> 9875.67 | E60: =E39+E50 -> 7958.72 | F60: =D60+E60 -> 17834.39
C61: Standard | D61: =D40+D51 -> 6327.12 | E61: 1094.678 | F61: =D61+E61 -> 7421.798
C62: Minor | D62: =D41+D52 -> 4402.913 | E62: 780.727 | F62: 5183.64
C63: Immediate | D63: =D42+D53 -> 2805.72 | E63: 2228 | F63: 5033.72
C65: Total | D65: =SUM(D60:D63) -> 23411.423 | E65: =SUM(E60:E63) -> 12062.125 | F65: 35473.548
B67: Congestion cost impact due to reduction in workdays
C69: Congestion impact costs
K71: Impact/day (2010 prices)
D72: Statutory undertaker (Utility) | E72: Local Authority | F72: Total | K72: Statutory undertaker (Utility) | L72: Local Authority
C73: Major | D73: =D50*K80 -> -731942.0083 | E73: =E50*L80 -> -841653.3278 | F73: =D73+E73 -> -1573595.336 | J73: Major | K73: ='Expected Change'!E13 -> 403.13 | L73: ='Expected Change'!E8 -> 1335.78
C74: Standard | D74: -19366.76781 | E74: -42482.51115 | F74: =D74+E74 -> -61849.27896 | J74: Standard | K74: ='Expected Change'!E14 -> 165.3 | L74: ='Expected Change'!E9 -> 408.49
C75: Minor | D75: 38517.79018 | E75: -28595.46637 | F75: 9922.323811 | J75: Minor | K75: ='Expected Change'!E15 -> 102.52 | L75: ='Expected Change'!E10 -> 329.21
C76: Immediate | D76: 14031.25862 | E76: =E53*L83 -> 0 | F76: 14031.25862 | J76: Immediate | K76: ='Expected Change'!E16 -> 150.77 | L76: ='Expected Change'!E11 -> 224.59
C77: Total | D77: =SUM(D73:D76) -> -698759.7273 | E77: =SUM(E73:E76) -> -912731.3053 | F77: -1611491.033
K78: Impact/day (2018 prices)
C79: Total impact on congestion costs due to permit scheme | E79: =$F$77 -> -1611491.033 | K79: Statutory undertaker (Utility) | L79: Local Authority
C80: =IF($E$79<0,"Benefits","Costs")&" to road users from the"&IF($E$79<0," decrease"," increase")&" in congestion costs" -> Benefits to road users from the decrease in congestion costs | J80: Major | K80: =K73*100/Deflator!$C$27 -> 459.0906577 | L80: =L73*100/Deflator!$C$27 -> 1521.206853
J81: Standard | K81: =K74*100/Deflator!$C$27 -> 188.2461879 | L81: =L74*100/Deflator!$C$27 -> 465.1947083
C82: ="The expected behavioural change will"&IF($J$52<0," decrease"," increase")&" the duration of current works. This is equivalent to"&IF($J$52<0," a decrease of "," an increase of ")&TEXT(IF($J$52<0,ROUND(-$J$52,0),ROUND($J$52,0)),"###,###")&" work days." -> The expected behavioural change will decrease the duration of current works. This is equivalent to a decrease of 2,006 work days. | F82: ="The "&IF($J$52<0, "reduction", "increase") &" in the duration of works " &IF($F$77<0,"decreases","increases")&" the costs of congestion by "&TEXT(ROUND(ABS($E$79),0),"£###,###,###")&" per year and is therefore a "&IF($E$79<0,"benefit","cost")&" to road users. " -> The reduction in the duration of works decreases the costs of congestion by £1,611,491 per year and is therefore a benefit to road users. | J82: Minor | K82: =K75*100/Deflator!$C$27 -> 116.7513562 | L82: =L75*100/Deflator!$C$27 -> 374.9094223
J83: Immediate | K83: =K76*100/Deflator!$C$27 -> 171.6991999 | L83: =L76*100/Deflator!$C$27 -> 255.7665537
C86: ="Breakdown of the " &IF($F$77<0, "benefits", "costs") &" to road users from the"&IF($F$77<0," decrease"," increase")&" in congestion costs:" -> Breakdown of the benefits to road users from the decrease in congestion costs:
C88: A breakdown of the change in the duration of works, measured in work days, is shown in this table. Please refer to the guidance note for further information.
C91: Congestion impact costs breakdown
C92: ****This is being measured as a benefit
C93: Total impact of change in workdays: | D93: =-($E$79) -> 1611491.033
C96: Business
C97: Journey Time Savings & Reliability | D97: =$D$93*Inputs!$F$125 -> 809418.1355
C99: Non-business
C100: Journey Time Savings & Reliability | D100: =$D$93*Inputs!$F$124 -> 711097.1146
C101: Accident | D101: =$D$93*Inputs!$F$127 -> 14105.23273
C102: Fuel carbon | D102: =$D$93*Inputs!$F$126 -> 76870.54974
B106: Set up and operating costs to Local Authorities
C108: Set up costs
C110: Set-up cost | D110: =Inputs!$M$84 -> 30000 | F110: First year cost to the Local Authority | I110: =IF($D$114= " ", " ", $D$114+(D118+H118+H119)) -> 506145.6446
C111: Price base: | D111: =Inputs!M85 -> 2019 | F111: Subsequent annual cost to the Local Authority (second year onwards) | I111: =($D$118+$H$118+$H$119) -> 476605.1152
C112: Deflator: | D112: =IF($D$111='Drop downs'!$B$15, " ", INDEX(Deflator!$B$25:$C$37,MATCH($D$111,Deflator!$B$25:$B$37),2)) -> 101.5553907
C114: Set-up cost (2018 prices): | D114: =IF($D$112=" ", $D$110, (D110*100)/D112) -> 29540.52937
C116: Operating Costs
C118: Running costs in relation to SU permitting: | D118: =$D$196 -> 313418.3308 | F118: Running costs should LAs pay permit fees | H118: =$E$196 -> 135988.987 | I118: This is equal to the admin cost that LAs have to do to review permit applications
C119: This is equal to the permit fees that utility companies pay | F119: Admin fees for LA works promoters | H119: =$D$126 -> 27197.7974
B121: Additional administration costs for works promoters
C123: This is the cost to apply for a permit fee
C124: SU admin costs (2018 prices) | D124: =H124*D118 -> 62683.66616 | F124: Administration cost uplift for works promoters | H124: ='Assumption for SU promoter cost'!$G$7 -> 0.2
C126: LA works promoter admin costs (2018 prices) | D126: =H124*H118 -> 27197.7974
C129: Permit fee structure
C131: Permit fee structure: | D131: =Inputs!$M$55 -> Maximum
D133: Road Category 0-2 or Traffic-sensitive | E133: Road Category 3-4 and non traffic sensitive
C134: Major over 10 days | D134: =IF(Inputs!$M$55='Drop downs'!$B$4, Inputs!M60, Inputs!M70) -> 240 | E134: =IF(Inputs!$M$55='Drop downs'!$B$4, Inputs!N60, Inputs!N70) -> 150
C135: Major 4 to 10 days | D135: =IF(Inputs!$M$55='Drop downs'!$B$4, Inputs!M61, Inputs!M71) -> 130 | E135: =IF(Inputs!$M$55='Drop downs'!$B$4, Inputs!N61, Inputs!N71) -> 75
C136: Major up to 3 days | D136: =IF(Inputs!$M$55='Drop downs'!$B$4, Inputs!M62, Inputs!M72) -> 65 | E136: =IF(Inputs!$M$55='Drop downs'!$B$4, Inputs!N62, Inputs!N72) -> 45
C137: Standard | D137: =IF(Inputs!$M$55='Drop downs'!$B$4, Inputs!M63, Inputs!M73) -> 130 | E137: =IF(Inputs!$M$55='Drop downs'!$B$4, Inputs!N63, Inputs!N73) -> 75
C138: Minor | D138: =IF(Inputs!$M$55='Drop downs'!$B$4, Inputs!M64, Inputs!M74) -> 65 | E138: =IF(Inputs!$M$55='Drop downs'!$B$4, Inputs!N64, Inputs!N74) -> 45
C139: Immediate | D139: =IF(Inputs!$M$55='Drop downs'!$B$4, Inputs!M65, Inputs!M75) -> 60 | E139: =IF(Inputs!$M$55='Drop downs'!$B$4, Inputs!N65, Inputs!N75) -> 40
C141: Number of works breakdown
C143: Total number of works | G143: Works type split by road type
D145: Statutory undertaker (Utility) | E145: Local Authority | H145: Statutory undertaker (Utility) | J145: Local Authority
C146: Major | D146: =Inputs!$M$22 -> 370 | E146: =Inputs!$N$22 -> 304 | H146: 0-2 roads | I146: 3-4 roads | J146: 0-2 roads | K146: 3-4 roads
C147: Major over 10 days | D147: =Inputs!$M$22*Inputs!$M47 -> 340.4 | E147: =Inputs!$N$22*Inputs!$M47 -> 279.68 | G147: Major | H147: =Inputs!M38 -> 0.25 | I147: =(1-$H147) -> 0.75 | J147: =Inputs!N38 -> 0.28 | K147: =(1-$J147) -> 0.72
C148: Major 4 to 10 days | D148: =Inputs!$M$22*Inputs!$M48 -> 11.1 | E148: =Inputs!$N$22*Inputs!$M48 -> 9.12 | G148: Standard | H148: =Inputs!M39 -> 0.22 | I148: =(1-$H148) -> 0.78 | J148: =Inputs!N39 -> 0.25 | K148: =(1-$J148) -> 0.75
C149: Major up to 3 days | D149: =Inputs!$M$22*Inputs!$M49 -> 18.5 | E149: =Inputs!$N$22*Inputs!$M49 -> 15.2 | G149: Minor | H149: =Inputs!M40 -> 0.2 | I149: 0.8 | J149: =Inputs!N40 -> 0.24 | K149: 0.76
C150: Standard | D150: =Inputs!M23 -> 684 | E150: =Inputs!N23 -> 113 | G150: Immediate | H150: =Inputs!M41 -> 0.24 | I150: 0.76 | J150: =Inputs!N41 -> 0.2 | K150: 0.8
C151: Minor | D151: =Inputs!M24 -> 2263 | E151: =Inputs!N24 -> 430
C152: Immediate | D152: =Inputs!M25 -> 1432 | E152: =Inputs!N25 -> 1047
C154: Total | D154: =($D$146+$D$150+$D$151+$D$152) -> 4749 | E154: =($E$146+$E$150+$E$151+$E$152) -> 1894
C158: Breakdown of works by works type and road type
D160: Statutory undertaker (Utility) | F160: Local Authority
D161: 0-2 roads | E161: 3-4 roads | F161: 0-2 roads | G161: 3-4 roads
C162: Major | D162: =SUM(D163:D165) -> 92.5 | E162: =SUM(E163:E165) -> 277.5 | F162: =SUM(F163:F165) -> 85.12 | G162: =SUM(G163:G165) -> 218.88
C163: Major over 10 days | D163: =D147*$H$147 -> 85.1 | E163: =D147*$I$147 -> 255.3 | F163: =E147*$J$147 -> 78.3104 | G163: =E147*$K$147 -> 201.3696
C164: Major 4 to 10 days | D164: =D148*$H$147 -> 2.775 | E164: =D148*$I$147 -> 8.325 | F164: =E148*$J$147 -> 2.5536 | G164: =E148*$K$147 -> 6.5664
C165: Major up to 3 days | D165: =D149*$H$147 -> 4.625 | E165: =D149*$I$147 -> 13.875 | F165: =E149*$J$147 -> 4.256 | G165: =E149*$K$147 -> 10.944
C166: Standard | D166: =D150*H148 -> 150.48 | E166: =D150*I148 -> 533.52 | F166: 28.25 | G166: =E150*K148 -> 84.75
C167: Minor | D167: =D151*H149 -> 452.6 | E167: 1810.4 | F167: 103.2 | G167: =E151*K149 -> 326.8
C168: Immediate | D168: =D152*H150 -> 343.68 | E168: 1088.32 | F168: 209.4 | G168: =E152*K150 -> 837.6
C170: Total | D170: =D162+D166+D167+D168 -> 1039.26 | E170: =E162+E166+E167+E168 -> 3709.74 | F170: =F162+F166+F167+F168 -> 425.97 | G170: 1468.03
C174: Revenue from the permit scheme
D176: Statutory undertaker (Utility) | F176: Local Authority
D177: 0-2 roads | E177: 3-4 roads | F177: 0-2 roads | G177: 3-4 roads
C178: Major | D178: =SUM(D179:D181) -> 21085.375 | E178: =SUM(E179:E181) -> 39543.75 | F178: 19403.104 | G178: 31190.4
C179: Major over 10 days | D179: =D163*D134 -> 20424 | E179: 38295 | F179: =F163*D134 -> 18794.496 | G179: =G163*E134 -> 30205.44
C180: Major 4 to 10 days | D180: 360.75 | E180: 624.375 | F180: 331.968 | G180: 492.48
C181: Major up to 3 days | D181: 300.625 | E181: 624.375 | F181: 276.64 | G181: 492.48
C182: Standard | D182: 19562.4 | E182: 40014 | F182: 3672.5 | G182: 6356.25
C183: Minor | D183: 29419 | E183: 81468 | F183: 6708 | G183: 14706
C184: Immediate | D184: 20620.8 | E184: 43532.8 | F184: 12564 | G184: 33504
C186: Total by road type | D186: =D178+D182+D183+D184 -> 90687.575 | E186: =E178+E182+E183+E184 -> 204558.55 | F186: 42347.604 | G186: 85756.65
C187: Total by works promoter | D187: =D186+E186 -> 295246.125 | F187: =F186+G186 -> 128104.254
C191: Uplift for cancelled works
D193: Statutory undertaker (Utility) | E193: Local Authority | F193: Total
C194: Revenue uplift for cancelled works | D194: =$D$187*'Income uplift for cancelled '!$G$11 -> 18172.20578 | E194: =$F$187*'Income uplift for cancelled '!$G$11 -> 7884.733002 | F194: =SUM(D194:E194) -> 26056.93879
C196: Total revenue (including uplift) | D196: =D187+D194 -> 313418.3308 | E196: =F187+E194 -> 135988.987 | F196: =SUM(D196,E196) -> 449407.3178
C199: Total revenue from the permit scheme | D199: Statutory Undertaker | F199: Local Authority
C201: =$D$201 -> 313418.3308 | D201: =$D$196 -> 313418.3308 | F201: =$E$196 -> 135988.987
C205: ="The appraisal covers the period of 10 years from "&(Appraisal!$D$11)&" to "&(Appraisal!$M$11)&", with a 2019 discount base. "&"Please refer to the guidance note for more information on appraisal." -> The appraisal covers the period of 10 years from 2019 to 2028, with a 2019 discount base. Please refer to the guidance note for more information on appraisal.
F207: ="The local authority will recover annual operating costs related to statutory undertaker permitting through revenue from statutory undertaker's permit fees. Costs to run the permit scheme for local authority works are non-recoverable." -> The local authority will recover annual operating costs related to statutory undertaker permitting through revenue from statutory undertaker's permit fees. Costs to run the permit scheme for local authority works are non-recoverable.
C208: Total operating costs | D208: =$I$111 -> 476605.1152
C209: Total revenue from permit scheme | D209: =$D$201 -> 313418.3308
D210: =D209/D208 -> 0.6576058897
B213: END

Sheet Outputs >>>
B10: Outputs

Sheet Key outputs
D1: Output Summary
N2: Prices are based to 2018
E4: Local Authority: | G4: =IF(Inputs!$M$17="", "", Inputs!$M$17) -> Herefordshire Council
D6: Key Inputs and Assumptions
D8: Works input
D10: Current number of street works per year | H10: Current number of work days per year
E12: Statutory Undertaker | F12: Local Authority | I12: Statutory Undertaker | J12: Local Authority
D13: Major | E13: =Inputs!M22 -> 370 | F13: =Inputs!N22 -> 304 | H13: Major | I13: =Inputs!M29 -> 11470 | J13: =Inputs!N29 -> 8512
D14: Standard | E14: =Inputs!M23 -> 684 | F14: =Inputs!N23 -> 113 | H14: Standard | I14: =Inputs!M30 -> 6430 | J14: =Inputs!N30 -> 1186
D15: Minor | E15: =Inputs!M24 -> 2263 | F15: =Inputs!N24 -> 430 | H15: Minor | I15: =Inputs!M31 -> 4073 | J15: =Inputs!N31 -> 857
D16: Immediate | E16: =Inputs!M25 -> 1432 | F16: =Inputs!N25 -> 1047 | H16: Immediate | I16: =Inputs!M32 -> 2724 | J16: =Inputs!N32 -> 2228
D18: Permit scheme fee structure
D20: Preferred permit fee structure | G20: =Inputs!$M$55 -> Maximum
I21: Rationale for custom permit fee structure:
D22: Permit Fee Structure | I22: =IF(Inputs!$L$77="", "", Inputs!$L$77) -> 
F23: Road Category 0-2 or Traffic-sensitive | G23: Road Category 3-4 and Non-traffic sensitive
D24: =Inputs!L60 -> Major works - over 10 days or traffic regulation order required | F24: =IF(Inputs!$M$55='Drop downs'!$B$4, Inputs!M60, Inputs!M70) -> 240 | G24: =IF(Inputs!$M$55='Drop downs'!$B$4, Inputs!N60, Inputs!N70) -> 150
D25: =Inputs!L61 -> Major works - 4 to 10 days and no traffic regulation order required | F25: =IF(Inputs!$M$55='Drop downs'!$B$4, Inputs!M61, Inputs!M71) -> 130 | G25: =IF(Inputs!$M$55='Drop downs'!$B$4, Inputs!N61, Inputs!N71) -> 75
D26: =Inputs!L62 -> Major works - up to 3 days and no traffic regulation order required | F26: =IF(Inputs!$M$55='Drop downs'!$B$4, Inputs!M62, Inputs!M72) -> 65 | G26: =IF(Inputs!$M$55='Drop downs'!$B$4, Inputs!N62, Inputs!N72) -> 45
D27: =Inputs!L63 -> Standard works | F27: =IF(Inputs!$M$55='Drop downs'!$B$4, Inputs!M63, Inputs!M73) -> 130 | G27: =IF(Inputs!$M$55='Drop downs'!$B$4, Inputs!N63, Inputs!N73) -> 75
D28: =Inputs!L64 -> Minor works | F28: =IF(Inputs!$M$55='Drop downs'!$B$4, Inputs!M64, Inputs!M74) -> 65 | G28: =IF(Inputs!$M$55='Drop downs'!$B$4, Inputs!N64, Inputs!N74) -> 45
D29: =Inputs!L65 -> Immediate works | F29: =IF(Inputs!$M$55='Drop downs'!$B$4, Inputs!M65, Inputs!M75) -> 60 | G29: =IF(Inputs!$M$55='Drop downs'!$B$4, Inputs!N65, Inputs!N75) -> 40
D31: Behavioural change in the duration of works
I32: Rationale for custom behavioural change:
D33: Behavioural change in the duration of works: | G33: =Inputs!$M$90 -> Default | I33: =IF(Inputs!$L$108="", "", Inputs!$L$108) -> 
E35: Statutory Undertaker | F35: Local Authority
D36: Major | E36: =IF(Inputs!$M$90='Drop downs'!$B$10, Inputs!M95, Inputs!M103) -> -0.139 | F36: =IF(Inputs!$M$90='Drop downs'!$B$10, Inputs!N95, Inputs!N103) -> -0.065
D37: Standard | E37: =IF(Inputs!$M$90='Drop downs'!$B$10, Inputs!M96, Inputs!M104) -> -0.016 | F37: =IF(Inputs!$M$90='Drop downs'!$B$10, Inputs!N96, Inputs!N104) -> -0.077 | I37: =Calculations!$G$27 -> The duration of works will increase for one or more of the categories in this table. Please refer to the guidance note for more information
D38: Minor | E38: =IF(Inputs!$M$90='Drop downs'!$B$10, Inputs!M97, Inputs!M105) -> 0.081 | F38: =IF(Inputs!$M$90='Drop downs'!$B$10, Inputs!N97, Inputs!N105) -> -0.089
D39: Immediate | E39: =IF(Inputs!$M$90='Drop downs'!$B$10, Inputs!M98, Inputs!M106) -> 0.03 | F39: =IF(Inputs!$M$90='Drop downs'!$B$10, Inputs!N98, Inputs!N106) -> 0
D41: Local authority costs
D43: Set-up costs | F43: =Inputs!$M$84 -> 30000
D44: Year of price base | F44: =Calculations!$D$111 -> 2019
D46: Key Outputs
D48: Number of works
J50: =Calculations!$F$18 -> The number of works that take place in the local authority will not change. The permit fee scheme will only impact the time taken to complete these works. The total duration of all works is measured in work days and is shown below.
D51: Total number of works | F51: =Calculations!$D$18 -> 6643
D55: Impact on number of workdays (total duration of works)
D57: Total current number of work days | F57: =Calculations!$J$50 -> 37480
J58: =Calculations!$C$82 -> The expected behavioural change will decrease the duration of current works. This is equivalent to a decrease of 2,006 work days.
D59: Expected number of work days due to permit scheme | F59: =Calculations!$J$54 -> 35473.548
D61: Expected change in work days | F61: =Calculations!$J$52 -> -2006.452
D64: Breakdown of the impact on the number work days
E65: =Calculations!D49 -> Statutory undertaker (Utility company) | F65: =Calculations!E49 -> Local Authority | G65: =Calculations!F49 -> Total
D66: =Calculations!C50 -> Major | E66: =Calculations!D50 -> -1594.33 | F66: =Calculations!E50 -> -553.28 | G66: =Calculations!F50 -> -2147.61
D67: =Calculations!C51 -> Standard | E67: =Calculations!D51 -> -102.88 | F67: =Calculations!E51 -> -91.322 | G67: =Calculations!F51 -> -194.202 | J67: =Calculations!$C$88 -> A breakdown of the change in the duration of works, measured in work days, is shown in this table. Please refer to the guidance note for further information.
D68: =Calculations!C52 -> Minor | E68: =Calculations!D52 -> 329.913 | F68: =Calculations!E52 -> -76.273 | G68: =Calculations!F52 -> 253.64
D69: =Calculations!C53 -> Immediate | E69: =Calculations!D53 -> 81.72 | F69: =Calculations!E53 -> 0 | G69: =Calculations!F53 -> 81.72
D71: =Calculations!C55 -> Total | E71: =Calculations!D55 -> -1285.577 | F71: =Calculations!E55 -> -720.875 | G71: =Calculations!F55 -> -2006.452
D73: Impact on the costs of congestion to road users
D75: =Calculations!$C$80 -> Benefits to road users from the decrease in congestion costs | H75: =ABS(Calculations!$E$79) -> 1611491.033
D77: =Calculations!C86 -> Breakdown of the benefits to road users from the decrease in congestion costs:
D78: Business | J78: =Calculations!$F$82 -> The reduction in the duration of works decreases the costs of congestion by £1,611,491 per year and is therefore a benefit to road users.
D79: Journey Time Savings & Reliability | F79: =Calculations!$D$97 -> 809418.1355
D81: Non-business
D82: Journey Time Savings & Reliability | F82: =Calculations!$D$100 -> 711097.1146
D83: Accident | F83: =Calculations!D101 -> 14105.23273 | J83: Please refer to the guidance note for further information on congestion cost impacts
D84: Fuel carbon | F84: =Calculations!D102 -> 76870.54974
D86: Costs to the local authority to set up and operate the permit scheme
D88: Set-up cost | F88: =IF(Calculations!$D$114=" ", " ", Calculations!$D$114) -> 29540.52937
D90: Operational costs (per year) | H90: =Calculations!$I$111 -> 476605.1152
D91: LA costs: | J91: =IFERROR(Calculations!$F$207, "") -> The local authority will recover annual operating costs related to statutory undertaker permitting through revenue from statutory undertaker's permit fees. Costs to run the permit scheme for local authority works are non-recoverable.
E92: Costs to review and issue permits to LA works promoters | H92: =Calculations!$H$118 -> 135988.987
E93: Costs to review, issue permits and receive permit fees from statutory undertakers | H93: =Calculations!$D$118 -> 313418.3308
D94: LA works promoter costs:
E95: Costs to apply for a permit (administration costs) | H95: =Calculations!$H$119 -> 27197.7974
D98: First year cost to the local authority | H98: =Calculations!$I$110 -> 506145.6446
D99: Subsequent annual cost to the local authority (second year onwards) | H99: =Calculations!$I$111 -> 476605.1152
D101: Costs to local authority works promoters
J103: Local authority works promoters will apply for a permit but do not pay a permit fee. Costs to local authority works promoters are the additional administration of using the permit scheme.
D104: Administration costs (per year) | G104: =Calculations!$D$126 -> 27197.7974
D107: Costs to statutory undertakers
D109: Permit fee costs (per year) | G109: =Calculations!$D$201 -> 313418.3308 | J109: Statutory undertakers will apply for a work permit and pay a permit fee.
D110: Administration costs (per year) | G110: =Calculations!$D$124 -> 62683.66616
D112: Annual revenue to the local authority
D114: Annual revenue from the permit scheme | G114: =Calculations!$C$201 -> 313418.3308 | J114: Local authority revenue from the permit scheme comes from permit fees paid by statutory undertakers. Local authority works promoters do not pay permit fees.
D115: Annual revenue from local authority works promoters permit fees | G115: 0
D116: Annual revenue from statutory undertakers permit fees | G116: =Calculations!$D$201 -> 313418.3308
D118: Appraisal Outputs
D120: Net Present Value | F120: =Appraisal!$D$76 -> 9199640.323 | J120: =Calculations!$C$205 -> The appraisal covers the period of 10 years from 2019 to 2028, with a 2019 discount base. Please refer to the guidance note for more information on appraisal.
D121: Net Present Costs | F121: =Appraisal!$D$74 -> 7369376.034
D122: Net Present Benefits | F122: =Appraisal!$D$75 -> 16569016.36

Sheet Appraisal (hidden)
B2: File Name | G2: =IFERROR(MID(CELL("filename",G2),FIND("[",CELL("filename",G2))+1,FIND("]",CELL("filename",G2))-FIND("[",CELL("filename",G2))-1),"Please save the file to show here") -> Herefordshire CBA.xlsm
B3: Sheet Name | G3: =IFERROR(MID(CELL("filename",G2),FIND("]",CELL("filename",G2))+1,255),"Please save the file to show here") -> Appraisal
B4: Description and Purpose of Sheet | G4: user input
B5: Version number | G5: =Version_number -> 0.03
C9: Undiscounted Impacts
D11: 2019 | E11: 2020 | F11: 2021 | G11: 2022 | H11: 2023 | I11: 2024 | J11: 2025 | K11: 2026 | L11: 2027 | M11: 2028
C12: Costs
C13: costs to business | D13: =SUM(D14:D15) -> 376101.9969 | E13: =SUM(E14:E15) -> 376101.9969 | F13: 376101.9969 | G13: 376101.9969 | H13: 376101.9969 | I13: 376101.9969 | J13: 376101.9969 | K13: 376101.9969 | L13: 376101.9969 | M13: 376101.9969
C14: Permit fees for Statutory Undertakers | D14: =Calculations!$D$118 -> 313418.3308 | E14: =Calculations!$D$118 -> 313418.3308 | F14: =Calculations!$D$118 -> 313418.3308 | G14: =Calculations!$D$118 -> 313418.3308 | H14: =Calculations!$D$118 -> 313418.3308 | I14: =Calculations!$D$118 -> 313418.3308 | J14: =Calculations!$D$118 -> 313418.3308 | K14: =Calculations!$D$118 -> 313418.3308 | L14: =Calculations!$D$118 -> 313418.3308 | M14: =Calculations!$D$118 -> 313418.3308
C15: SU admin costs | D15: =Calculations!$D$124 -> 62683.66616 | E15: =Calculations!$D$124 -> 62683.66616 | F15: =Calculations!$D$124 -> 62683.66616 | G15: =Calculations!$D$124 -> 62683.66616 | H15: =Calculations!$D$124 -> 62683.66616 | I15: =Calculations!$D$124 -> 62683.66616 | J15: =Calculations!$D$124 -> 62683.66616 | K15: =Calculations!$D$124 -> 62683.66616 | L15: =Calculations!$D$124 -> 62683.66616 | M15: =Calculations!$D$124 -> 62683.66616
C17: costs to non -business | D17: =SUM(D18:D21) -> 506145.6446 | E17: =SUM(E18:E21) -> 476605.1152 | F17: 476605.1152 | G17: 476605.1152 | H17: 476605.1152 | I17: 476605.1152 | J17: 476605.1152 | K17: 476605.1152 | L17: 476605.1152 | M17: 476605.1152
C18: LA works promoters admin costs | D18: =Calculations!$D$126 -> 27197.7974 | E18: =Calculations!$D$126 -> 27197.7974 | F18: =Calculations!$D$126 -> 27197.7974 | G18: =Calculations!$D$126 -> 27197.7974 | H18: =Calculations!$D$126 -> 27197.7974 | I18: =Calculations!$D$126 -> 27197.7974 | J18: =Calculations!$D$126 -> 27197.7974 | K18: =Calculations!$D$126 -> 27197.7974 | L18: =Calculations!$D$126 -> 27197.7974 | M18: =Calculations!$D$126 -> 27197.7974
C19: Set up costs LA's | D19: =Calculations!$D$114 -> 29540.52937 | E19: 0 | F19: 0 | G19: 0 | H19: 0 | I19: 0 | J19: 0 | K19: 0 | L19: 0 | M19: 0
C20: LA costs to review LA work promoter permits | D20: =Calculations!$H$118 -> 135988.987 | E20: =Calculations!$H$118 -> 135988.987 | F20: =Calculations!$H$118 -> 135988.987 | G20: =Calculations!$H$118 -> 135988.987 | H20: =Calculations!$H$118 -> 135988.987 | I20: =Calculations!$H$118 -> 135988.987 | J20: =Calculations!$H$118 -> 135988.987 | K20: =Calculations!$H$118 -> 135988.987 | L20: =Calculations!$H$118 -> 135988.987 | M20: =Calculations!$H$118 -> 135988.987
C21: LA costs to review utility company permits | D21: =Calculations!$D$118 -> 313418.3308 | E21: =Calculations!$D$118 -> 313418.3308 | F21: =Calculations!$D$118 -> 313418.3308 | G21: =Calculations!$D$118 -> 313418.3308 | H21: =Calculations!$D$118 -> 313418.3308 | I21: =Calculations!$D$118 -> 313418.3308 | J21: =Calculations!$D$118 -> 313418.3308 | K21: =Calculations!$D$118 -> 313418.3308 | L21: =Calculations!$D$118 -> 313418.3308 | M21: =Calculations!$D$118 -> 313418.3308
C23: Benefits
C24: Benefits to business | D24: =SUM(D25:D26) -> 809418.1355 | E24: =SUM(E25:E26) -> 809418.1355 | F24: 809418.1355 | G24: 809418.1355 | H24: 809418.1355 | I24: 809418.1355 | J24: 809418.1355 | K24: 809418.1355 | L24: 809418.1355 | M24: 809418.1355
C25: Journey time and reliability | D25: =Calculations!$D$97 -> 809418.1355 | E25: =Calculations!$D$97 -> 809418.1355 | F25: =Calculations!$D$97 -> 809418.1355 | G25: =Calculations!$D$97 -> 809418.1355 | H25: =Calculations!$D$97 -> 809418.1355 | I25: =Calculations!$D$97 -> 809418.1355 | J25: =Calculations!$D$97 -> 809418.1355 | K25: =Calculations!$D$97 -> 809418.1355 | L25: =Calculations!$D$97 -> 809418.1355 | M25: =Calculations!$D$97 -> 809418.1355
C27: Benefits to non-business | D27: =SUM(D28:D31) -> 1115491.228 | E27: =SUM(E28:E31) -> 1115491.228 | F27: 1115491.228 | G27: 1115491.228 | H27: 1115491.228 | I27: 1115491.228 | J27: 1115491.228 | K27: 1115491.228 | L27: 1115491.228 | M27: 1115491.228
C28: Revenue from permit fee income | D28: =Calculations!$C$201 -> 313418.3308 | E28: =Calculations!$C$201 -> 313418.3308 | F28: =Calculations!$C$201 -> 313418.3308 | G28: =Calculations!$C$201 -> 313418.3308 | H28: =Calculations!$C$201 -> 313418.3308 | I28: =Calculations!$C$201 -> 313418.3308 | J28: =Calculations!$C$201 -> 313418.3308 | K28: =Calculations!$C$201 -> 313418.3308 | L28: =Calculations!$C$201 -> 313418.3308 | M28: =Calculations!$C$201 -> 313418.3308
C29: Journey time and reliability | D29: =Calculations!$D$100 -> 711097.1146 | E29: =Calculations!$D$100 -> 711097.1146 | F29: =Calculations!$D$100 -> 711097.1146 | G29: =Calculations!$D$100 -> 711097.1146 | H29: =Calculations!$D$100 -> 711097.1146 | I29: =Calculations!$D$100 -> 711097.1146 | J29: =Calculations!$D$100 -> 711097.1146 | K29: =Calculations!$D$100 -> 711097.1146 | L29: =Calculations!$D$100 -> 711097.1146 | M29: =Calculations!$D$100 -> 711097.1146
C30: Accident | D30: =Calculations!$D$101 -> 14105.23273 | E30: =Calculations!$D$101 -> 14105.23273 | F30: =Calculations!$D$101 -> 14105.23273 | G30: =Calculations!$D$101 -> 14105.23273 | H30: =Calculations!$D$101 -> 14105.23273 | I30: =Calculations!$D$101 -> 14105.23273 | J30: =Calculations!$D$101 -> 14105.23273 | K30: =Calculations!$D$101 -> 14105.23273 | L30: =Calculations!$D$101 -> 14105.23273 | M30: =Calculations!$D$101 -> 14105.23273
C31: Fuel carbon | D31: =Calculations!$D$102 -> 76870.54974 | E31: =Calculations!$D$102 -> 76870.54974 | F31: =Calculations!$D$102 -> 76870.54974 | G31: =Calculations!$D$102 -> 76870.54974 | H31: =Calculations!$D$102 -> 76870.54974 | I31: =Calculations!$D$102 -> 76870.54974 | J31: =Calculations!$D$102 -> 76870.54974 | K31: =Calculations!$D$102 -> 76870.54974 | L31: =Calculations!$D$102 -> 76870.54974 | M31: =Calculations!$D$102 -> 76870.54974
C35: Discounted Impacts
C37: Discount rate: | D37: 0.035
D39: =D11 -> 2019 | E39: 2020 | F39: 2021 | G39: 2022 | H39: 2023 | I39: 2024 | J39: 2025 | K39: 2026 | L39: 2027 | M39: 2028
C40: Discount factor | D40: 1 | E40: =D40/(1+$D$37) -> 0.9661835749 | F40: 0.9335107004 | G40: 0.9019427057 | H40: 0.8714422277 | I40: 0.8419731669 | J40: 0.8135006443 | K40: 0.7859909607 | L40: 0.7594115562 | M40: 0.7337309722
C42: Costs
C43: costs to business | D43: =SUM(D44:D46) -> 376101.9969 | E43: =SUM(E44:E46) -> 363383.5719 | F43: 351095.2386 | G43: 339222.4527 | H43: 327751.1621 | I43: 316667.7894 | J43: 305959.2168 | K43: 295612.7699 | L43: 285616.2028 | M43: 275957.6839
C44: Permit fees for Statutory Undertakers | D44: =D14*D$40 -> 313418.3308 | E44: 302819.6433 | F44: 292579.3655 | G44: 282685.3773 | H44: 273125.9684 | I44: 263889.8245 | J44: 254966.014 | K44: 246343.9749 | L44: 238013.5023 | M44: 229964.7365
C45: SU admin costs | D45: =D15*D$40 -> 62683.66616 | E45: 60563.92865 | F45: 58515.8731 | G45: 56537.07545 | H45: 54625.19368 | I45: 52777.9649 | J45: 50993.20281 | K45: 49268.79498 | L45: 47602.70047 | M45: 45992.94731
C47: costs to non -business | D47: =SUM(D48:D51) -> 506145.6446 | E47: =SUM(E48:E51) -> 460488.034 | F47: 444915.9749 | G47: 429870.5071 | H47: 415333.8233 | I47: 401288.7182 | J47: 387718.5683 | K47: 374607.3124 | L47: 361939.4322 | M47: 349699.9345
C48: LA works promoters admin costs | D48: =D18*D$40 -> 27197.7974 | E48: =E18*E$40 -> 26278.06512 | F48: 25389.4349 | G48: 24530.85498 | H48: 23701.30916 | I48: 22899.81561 | J48: 22125.42571 | K48: 21377.22291 | L48: 20654.32165 | M48: 19955.86633
C49: Set up costs LA's | D49: =D19*D$40 -> 29540.52937 | E49: =E19*E$40 -> 0 | F49: 0 | G49: 0 | H49: 0 | I49: 0 | J49: 0 | K49: 0 | L49: 0 | M49: 0
C50: LA costs to review LA work promoter permits | D50: =D20*D$40 -> 135988.987 | E50: =E20*E$40 -> 131390.3256 | F50: 126947.1745 | G50: 122654.2749 | H50: 118506.5458 | I50: 114499.078 | J50: 110627.1285 | K50: 106886.1145 | L50: 103271.6082 | M50: 99779.33164
C51: LA costs to review utility company permits | D51: =D21*D$40 -> 313418.3308 | E51: =E21*E$40 -> 302819.6433 | F51: 292579.3655 | G51: 282685.3773 | H51: 273125.9684 | I51: 263889.8245 | J51: 254966.014 | K51: 246343.9749 | L51: 238013.5023 | M51: 229964.7365
C53: Benefits
C54: Benefits to business | D54: =SUM(D55:D56) -> 809418.1355 | E54: =SUM(E55:E56) -> 782046.5077 | F54: 755600.4906 | G54: 730048.7832 | H54: 705361.1432 | I54: 681508.3509 | J54: 658462.1748 | K54: 636195.3379 | L54: 614681.4859 | M54: 593895.1555
C55: Journey time and reliability | D55: =D25*D$40 -> 809418.1355 | E55: 782046.5077 | F55: 755600.4906 | G55: 730048.7832 | H55: 705361.1432 | I55: 681508.3509 | J55: 658462.1748 | K55: 636195.3379 | L55: 614681.4859 | M55: 593895.1555
C57: Benefits to non-business | D57: =SUM(D58:D62) -> 1115491.228 | E57: =SUM(E58:E62) -> 1077769.302 | F57: 1041322.997 | G57: 1006109.176 | H57: 972086.1606 | I57: 939213.6817 | J57: 907452.8326 | K57: 876766.0218 | L57: 847116.9293 | M57: 818470.4631
C58: Revenue from permit fee income | D58: =D28*D$40 -> 313418.3308 | E58: 302819.6433 | F58: 292579.3655 | G58: 282685.3773 | H58: 273125.9684 | I58: 263889.8245 | J58: 254966.014 | K58: 246343.9749 | L58: 238013.5023 | M58: 229964.7365
C59: Journey time and reliability | D59: =D29*D$40 -> 711097.1146 | E59: 687050.3523 | F59: 663816.7655 | G59: 641368.8555 | H59: 619680.0536 | I59: 598724.6895 | J59: 578477.9609 | K59: 558915.9042 | L59: 540015.3664 | M59: 521753.9772
C60: Accident | D60: =D30*D$40 -> 14105.23273 | E60: 13628.24418 | F60: 13167.38568 | G60: 12722.11177 | H60: 12291.89543 | I60: 11876.22747 | J60: 11474.61591 | K60: 11086.58542 | L60: 10711.67674 | M60: 10349.44612
C61: Fuel carbon | D61: =D31*D$40 -> 76870.54974 | E61: 74271.06256 | F61: 71759.48073 | G61: 69332.83162 | H61: 66988.24311 | I61: 64722.94021 | J61: 62534.24175 | K61: 60419.55724 | L61: 58376.38381 | M61: 56402.3032
C64: Costs to business | D64: =D43 -> 376101.9969 | E64: 363383.5719 | F64: 351095.2386 | G64: 339222.4527 | H64: 327751.1621 | I64: 316667.7894 | J64: 305959.2168 | K64: 295612.7699 | L64: 285616.2028 | M64: 275957.6839
C65: Costs to non-business | D65: =D47 -> 506145.6446 | E65: 460488.034 | F65: 444915.9749 | G65: 429870.5071 | H65: 415333.8233 | I65: 401288.7182 | J65: 387718.5683 | K65: 374607.3124 | L65: 361939.4322 | M65: 349699.9345
C66: Benefits to business | D66: =D54 -> 809418.1355 | E66: =E54 -> 782046.5077 | F66: 755600.4906 | G66: 730048.7832 | H66: 705361.1432 | I66: 681508.3509 | J66: 658462.1748 | K66: 636195.3379 | L66: 614681.4859 | M66: 593895.1555
C67: Benefits to non-business | D67: =D57 -> 1115491.228 | E67: =E57 -> 1077769.302 | F67: 1041322.997 | G67: 1006109.176 | H67: 972086.1606 | I67: 939213.6817 | J67: 907452.8326 | K67: 876766.0218 | L67: 847116.9293 | M67: 818470.4631
C70: Total Costs | D70: =SUM(D64:D65) -> 882247.6415 | E70: =SUM(E64:E65) -> 823871.6059 | F70: 796011.2134 | G70: 769092.9599 | H70: 743084.9854 | I70: 717956.5076 | J70: 693677.7851 | K70: 670220.0822 | L70: 647555.635 | M70: 625657.6184
C71: Total Benefits | D71: =SUM(D66:D67) -> 1924909.363 | E71: =SUM(E66:E67) -> 1859815.81 | F71: 1796923.488 | G71: 1736157.959 | H71: 1677447.304 | I71: 1620722.033 | J71: 1565915.007 | K71: 1512961.36 | L71: 1461798.415 | M71: 1412365.619
C74: NPC | D74: =SUM(D70:M70) -> 7369376.034
C75: NPB | D75: =SUM(D71:M71) -> 16569016.36
C76: NPV | D76: =D75-D74 -> 9199640.323
B82: END

Sheet Costs & Benefits Summary (hidden)
B2: File Name | G2: =IFERROR(MID(CELL("filename",G2),FIND("[",CELL("filename",G2))+1,FIND("]",CELL("filename",G2))-FIND("[",CELL("filename",G2))-1),"Please save the file to show here") -> Herefordshire CBA.xlsm
B3: Sheet Name | G3: =IFERROR(MID(CELL("filename",G2),FIND("]",CELL("filename",G2))+1,255),"Please save the file to show here") -> Costs & Benefits Summary
B4: Description and Purpose of Sheet | G4: user input
B5: Version number | G5: =Version_number -> 0.03
B8: Output Summary
C10: Changes in workdays
D12: Number of work days
D13: Before permit scheme | E13: After permit scheme | F13: Change in number of work days | G13: Percentage change in number of work days
C14: Major | D14: =SUM(Inputs!M29:N29) -> 19982 | E14: =D14+F14 -> 17834.39 | F14: =Calculations!D50+Calculations!E50 -> -2147.61 | G14: =IF((D14)=0, "",F14/D14) -> -0.1074772295
C15: Standard | D15: =SUM(Inputs!M30:N30) -> 7616 | E15: =D15+F15 -> 7421.798 | F15: =Calculations!D51+Calculations!E51 -> -194.202 | G15: =IF((D15)=0, "",F15/D15) -> -0.02549921218
C16: Minor | D16: =SUM(Inputs!M31:N31) -> 4930 | E16: 5183.64 | F16: =Calculations!D52+Calculations!E52 -> 253.64 | G16: 0.05144827586
C17: Immediate* | D17: =SUM(Inputs!M32:N32) -> 4952 | E17: 5033.72 | F17: =Calculations!D53+Calculations!E53 -> 81.72 | G17: 0.01650242326
C18: Total | D18: =SUM(D14:D17) -> 37480 | E18: =SUM(E14:E17) -> 35473.548 | F18: =SUM(F14:F17) -> -2006.452 | G18: -0.0535339381
C20: Annual Cost and Benefits Summary (2018 prices)
C22: Costs | G22: Benefits
C23: Cost incured by LAs (1st year): | E23: =E27+E24+E28 -> 478947.8472 | G23: Benefits for the society: | I23: =I24 -> 1611491.033
C24: LHA set-up costs (only the 1st year) | E24: =Calculations!D114 -> 29540.52937 | G24: Benefit of reduced work duration** | I24: =ABS(Calculations!E79) -> 1611491.033
C26: Cost incured LAs (from 2nd year) | E26: =SUM(E27:E29) -> 476605.1152 | G26: Benefits for LAs: | I26: =I27 -> 313418.3308
C27: LHA running costs for SU permits | E27: =Calculations!D118 -> 313418.3308 | G27: Permit fee income | I27: =Calculations!D196 -> 313418.3308
C28: LHA running costs for LHA permits | E28: =Calculations!E196 -> 135988.987
C29: LHA works promoter admin costs | E29: =Calculations!D126 -> 27197.7974 | G29: Total | I29: =I24+I27 -> 1924909.363
C31: Cost incured by SUs | E31: =E33+E32 -> 376101.9969
C32: Permit fee paid by SUs | E32: =Calculations!D201 -> 313418.3308
C33: Works promoter admin costs | E33: =Calculations!D124 -> 62683.66616
C35: Total (1st year) | E35: =E23+E31 -> 855049.8441
C36: Total ( From 2nd year) | E36: =E26+E31 -> 852707.1121
C39: Net benefits (annual) | E39: =E41/10 -> 919964.0323
C40: Net benefits (1st year) | E40: =E39-E35 -> 64914.18824
C41: NPV over 10 years | E41: =Appraisal!D76 -> 9199640.323
B60: END

Sheet Data >>> (hidden)

Sheet Maximum Charges (hidden)
B2: Source: | C2: Permit fee strcuture for street works and road works - Statutory Guidance for Highway Authority Permit Schemes. Section 6 page 29
B3: Link: | C3: https://assets.publishing.service.gov.uk/government/uploads/system/uploads/attachment_data/file/465803/statutory-guide-for-permit-schemes.pdf
C5: Revised maximum fee structure for each category of works and for a hierarchy of main and minor roads - Road category refers to the reinstatement category of the street under the New Roads and Street Works Act 1991
D6: Road Category 0-2 or Traffic-sensitive | E6: Road Category 3-4 and non trafficsensitive
C7: Provisional Advance (It is suggested this fee applies only where value has been added in processing the works) | D7: 150 | E7: 75
C8: Major works – over 10 days and all major works requiring a traffic regulation order. | D8: 240 | E8: 150
C9: Major works – 4 to 10 days | D9: 130 | E9: 75
C10: Major works – up to 3 days | D10: 65 | E10: 45
C11: Activity Standard | D11: 130 | E11: 75
C12: Activity Minor | D12: 65 | E12: 45
C13: Immediate Activity | D13: 60 | E13: 40
C14: Permit Variation | D14: 45 | E14: 35

Sheet Deflator (hidden)
C2: GDP deflator1
C5: (2018 = 100)
B6: Year
B7: 1990 | C7: 55.22210198
B8: 1991 | C8: 58.84734088
B9: 1992 | C9: 60.64331452
B10: 1993 | C10: 62.22653709
B11: 1994 | C11: 62.97638613
B12: 1995 | C12: 64.50386004
B13: 1996 | C13: 67.13763953
B14: 1997 | C14: 67.76574768
B15: 1998 | C15: 68.54711539
B16: 1999 | C16: 69.11632301
B17: 2000 | C17: 70.52954171
B18: 2001 | C18: 71.13657174
B19: 2002 | C19: 72.72038529
B20: 2003 | C20: 74.47390721
B21: 2004 | C21: 76.34375276
B22: 2005 | C22: 78.36016015
B23: 2006 | C23: 80.73656994
B24: 2007 | C24: 82.81680266
B25: 2008 | C25: 85.1681945
B26: 2009 | C26: 86.45376256
B27: 2010 | C27: 87.81054313
B28: 2011 | C28: 89.57696802
B29: 2012 | C29: 90.9740334
B30: 2013 | C30: 92.70696969
B31: 2014 | C31: 94.29905689
B32: 2015 | C32: 94.73046879
B33: 2016 | C33: 96.59666998
B34: 2017 | C34: 98.4958673
B35: 2018 | C35: 100
B36: 2019 | C36: 101.5553907
B37: 2020 | C37: 103.2272843
B38: 2021 | C38: 104.9926118
B39: 2022 | C39: 106.90484
B40: 2023 | C40: 109.2567465
B41: 2024 | C41: 111.6603949
B42: 2025 | C42: 114.1169236
B43: 2026 | C43: 116.6274959
B44: 2027 | C44: 119.1933008
B45: 2028 | C45: 121.8155534
B46: 2029 | C46: 124.4954956
B47: 2030 | C47: 127.2343965

Sheet Expected Change (hidden)
B2: Source: | C2: Evaluation of Street Works Permit Schemes 2017 Report - Table 3.9 Estimation of the impact of permit schemes
B3: Link: | C3: https://assets.publishing.service.gov.uk/government/uploads/system/uploads/attachment_data/file/700502/permit-schemes-evaluation-report.pdf
C5: Table 3.9 Estimation of the impact of permit schemes
C6: Type of road | D6: Duration change | E6: Impact*/day (2010 prices)
C7: Highways
C8: Major | D8: -0.065 | E8: 1335.78
C9: Standard | D9: -0.077 | E9: 408.49
C10: Minor | D10: -0.089 | E10: 329.21
C11: Immediate | D11: 0 | E11: 224.59
C12: SU
C13: Major | D13: -0.139 | E13: 403.13
C14: Standard | D14: -0.016 | E14: 165.3
C15: Minor | D15: 0.081 | E15: 102.52
C16: Immediate | D16: 0.03 | E16: 150.77

Sheet Income uplift for cancelled (hidden)
B3: Source: | C3: Evaluation of Street Works Permit Schemes Annexes 2017 - Figure 8.2 Proportion of permit fee income by final works status
B4: Link: | C4: https://assets.publishing.service.gov.uk/government/uploads/system/uploads/attachment_data/file/700503/permit-schemes-evaluation-annexes.pdf
C6: Figure 8.2 - Proportion of permit fee income by final works status
D7: 2014 | E7: 2015 | F7: 2016 | G7: Average
C8: Planned works | D8: 0.194 | E8: 0.173 | F8: 0.249 | G8: =AVERAGE(D8:F8) -> 0.2053333333
C9: Cancelled works | D9: 0.063 | E9: 0.061 | F9: 0.05 | G9: =AVERAGE(D9:F9) -> 0.058
C10: Works Undertaken | D10: 0.744 | E10: 0.766 | F10: 0.701 | G10: 0.737
C11: Income uplift for cancelled works | D11: =D9/(D8+D10) -> 0.0671641791 | E11: =E9/(E8+E10) -> 0.0649627263 | F11: 0.05263157895 | G11: =G9/(G8+G10) -> 0.0615493456

Sheet HIDE >>> (hidden)

Sheet Assumption for SU promoter cost (hidden)
B3: Source: | C3: Evaluation of Street Works Permit Schemes Annexes 2017 - Page 67
B4: Link: | C4: https://assets.publishing.service.gov.uk/government/uploads/system/uploads/attachment_data/file/700503/permit-schemes-evaluation-annexes.pdf
C7: Uplift for works promoters additional administration costs | G7: 0.2
C9: "Equally, establishing robust data relating to the cost to works promoters of additional administration and changes in working practices have been challenging. Based on a review of information provided by respondents to a survey undertaken as part of this study, supported by wider evidence derived from permit scheme evaluations, promoter administration costs have been estimated at 20% of the cost to the LHA. It has not been possible to estimate the costs of any changes to working practices implemented by promoters in response to directions or conditions being applied by LHAs."

Sheet Drop downs (hidden)
B2: Preferred permit scheme structure
B3: Select
B4: Maximum
B5: Custom
B8: Change in the number of work days behavioural change
B9: Select
B10: Default
B11: Custom
B14: Price base year
B15: Select
B16: 2008
B17: 2009
B18: 2010
B19: 2011
B20: 2012
B21: 2013
B22: 2014
B23: 2015
B24: 2016
B25: 2017
B26: 2018
B27: 2019
B28: 2020

Sheet Outputs>> (hidden)
C11: Outputs

Sheet Charts>> (hidden)
C11: Charts

Sheet Chart Format Instructions (hidden)
A1: Chart formatting tool
A3: This toolkit allows you to automatically format your charts and graphs to the DfT statistics house style.
A4: Once formatted, the font on the charts and text will be a suitable size for reading and printing when pasted in word or used in presentations.
A5: This toolkit is not designed to change the chart type (e.g. if the original graph you have created is a bar chart the macro can change it into a DfT bar chart but not an area chart).
A7: To use the toolkit:
A9: Go to the worksheet containing the chart to be formatted and click on it
A10: Select the appropriate chart type from the DfT tab at the top of the spreadsheet
A11: Click the appropriate button
A13: The chart will be moved to a new sheet, if not already the case, and formatted to a consistent style.
A14: If you want to keep the original chart - take a copy before running the macro
A15: You can reposition the location of any text boxes or labels if you have applied if needed but do not adjust any formatting.
A17: Formatting the chart
A19: When you run the macro for either bar or line charts you will be presented with some formatting options for your axes
A20: For bar charts, you will be asked to change the increments for your value axes labels. It is recommended you have no more than 6 values showing.
A21: For example, if you have a chart with values ranging from 0 to 1000, you should have increments of 200
A22: For line charts, you will be asked the same as above and also the increments for your category axes. Try to make it so your labels do no overlap
A23: For example, if you have a chart showing data over time from 1990 to 2014, you may want to reduce the frequency of your labels to show one every 3 years
A24: For line charts, you will also be given two different label options to use for your chart. Where possible, move the text box labels and position them on the chart next to the lines and delete the legend above the chart
A25: Where this isn't possible, delete the individual text boxes and leave the legend above the chart
A27: Exporting the chart
A29: When copying and exporting the chart to another location e.g. word, the chart will look better if copied from it's own worksheet (i.e. how the macro places it).
A30: If you do embed it in a worksheet, the chart is set up to retain the original font size, even if the chart is resized. This is to ensure the font is still readable when copied and pasted elsewhere. Please do not adjust the font manaully - it will become small and unreadable when pasted elsewhere.

Sheet Template sheet>> (hidden)
C11: Sheet for use in template

Sheet X- XXX (hidden)
B2: File Name | G2: =IFERROR(MID(CELL("filename",G2),FIND("[",CELL("filename",G2))+1,FIND("]",CELL("filename",G2))-FIND("[",CELL("filename",G2))-1),"Please save the file to show here") -> Herefordshire CBA.xlsm
B3: Sheet Name | G3: =IFERROR(MID(CELL("filename",G2),FIND("]",CELL("filename",G2))+1,255),"Please save the file to show here") -> X- XXX
B4: Description and Purpose of Sheet | G4: user input
B5: Version number | G5: =Version_number -> 0.03
B8: Header 1
C10: Header 2
B35: END
